bitfinex/quotes_BTCUSD_20260221
["timestamp","ask_amount","ask_price","bid_price","bid_amount"]
[1771685433952,0.07293376,68556.0,68548.0,0.07294069]
[1771685435999,0.07293376,68556.0,68546.0,0.07294361]
[1771685436000,0.07293588,68554.0,68546.0,0.07294361]
[1771685438519,0.07293687,68553.0,68546.0,0.07294371]
[1771685438726,0.07293588,68554.0,68546.0,0.07294371]
[1771685438931,0.07313588,68554.0,68546.0,0.07294371]
[1771685440938,0.07313588,68554.0,68545.0,0.07294439]
[1771685440939,0.07313588,68554.0,68547.0,0.07294263]
[1771685441163,0.0002,68554.0,68547.0,0.07294263]
[1771685443216,0.0002,68554.0,68548.0,0.07294079]
[1771685443399,0.0002,68554.0,68551.0,0.07293828]
[1771685443716,0.07310452,68566.0,68551.0,0.32837016]
[1771685443887,0.0001811,68566.0,68551.0,0.32837016]
[1771685444143,0.0001811,68566.0,68550.0,0.16374813]
[1771685444144,0.07292362,68565.0,68557.0,0.07293116]
[1771685444442,0.0001811,68566.0,68558.0,0.07293039]
[1771685444917,0.07310368,68566.0,68558.0,0.07293066]
[1771685445075,0.0001811,68566.0,68554.0,0.32837016]
[1771685445278,0.00029798,68566.0,68559.0,0.07292985]
[1771685445481,0.00029798,68566.0,68555.0,0.32837016]
[1771685445719,0.00029798,68566.0,68554.0,0.0729352]
[1771685445720,0.07292568,68563.0,68554.0,0.0729352]
[1771685445924,0.07292485,68564.0,68555.0,0.07293412]
[1771685446128,0.07292603,68563.0,68555.0,0.07293412]
[1771685446955,0.07292475,68564.0,68556.0,0.07293297]
[1771685447361,0.0002,68565.0,68558.0,0.07293052]
[1771685447510,0.0002,68565.0,68556.0,0.07293297]
[1771685447817,0.0002,68565.0,68560.0,0.0729279]
[1771685448464,0.29166282,68573.0,68562.0,0.07292626]
[1771685448465,0.07291789,68572.0,68562.0,0.07292626]
[1771685448617,0.28020617,68580.0,68560.0,0.51556649]
[1771685448618,0.00016,68570.0,68560.0,0.51556649]
[1771685448820,0.00016,68570.0,68561.0,0.29170934]
[1771685449040,0.00016,68570.0,68565.0,0.07292265]
[1771685449574,0.00016,68570.0,68565.0,0.07292286]
[1771685449774,0.00016,68570.0,68566.0,0.07292194]
[1771685449924,0.00016,68570.0,68565.0,0.07292286]
[1771685450133,0.00016,68570.0,68561.0,0.42490611]
[1771685450337,0.0001052,68581.0,68562.0,0.32837016]
[1771685450545,0.0001052,68581.0,68574.0,0.07291386]
[1771685450945,0.29180299,68587.0,68578.0,0.07290946]
[1771685450946,0.0002,68587.0,68578.0,0.07290946]
[1771685451151,0.24830128,68586.0,68578.0,0.07290946]
[1771685451535,0.24830128,68586.0,68577.0,0.0729105]
[1771685451536,0.07290234,68585.0,68577.0,0.0729105]
[1771685451970,0.07290334,68584.0,68576.0,0.07291127]
[1771685452483,0.07290334,68584.0,68574.0,0.07291352]
[1771685452684,0.07290454,68583.0,68575.0,0.07291269]
[1771685453544,0.07290334,68584.0,68576.0,0.0729116]
[1771685453755,0.07310245,68585.0,68577.0,0.07291054]
[1771685453963,0.07310245,68585.0,68576.0,0.0688639]
[1771685454166,0.07290351,68584.0,68576.0,0.0688639]
[1771685454609,0.0002,68585.0,68572.0,0.35197836]
[1771685454742,0.07310308,68585.0,68572.0,0.35197836]
[1771685454947,0.07310308,68585.0,68576.0,0.07291091]
[1771685455276,0.07290333,68584.0,68576.0,0.07291091]
[1771685455475,0.07290333,68584.0,68577.0,0.07291067]
[1771685455893,0.02295964,68584.0,68573.0,0.07291403]
[1771685456846,0.07290744,68581.0,68573.0,0.07291403]
[1771685457044,0.02295964,68574.0,68570.0,0.00016]
[1771685457294,0.0002,68585.0,68570.0,0.00016]
[1771685457295,0.07290884,68579.0,68571.0,0.07291697]
[1771685457689,0.0002,68585.0,68575.0,0.40128207]
[1771685458000,0.07310308,68585.0,68575.0,0.07291191]
[1771685458159,0.07290514,68583.0,68575.0,0.07291191]
[1771685458499,0.07310308,68585.0,68575.0,0.0729128]
[1771685458500,0.0002,68585.0,68575.0,0.0729128]
[1771685458678,0.07290404,68584.0,68577.0,0.07291074]
[1771685458859,0.07290404,68584.0,68575.0,0.40128296]
[1771685458860,0.0002,68585.0,68576.0,0.0729118]
[1771685459047,0.07290442,68583.0,68576.0,0.0729118]
[1771685459501,0.07290442,68583.0,68575.0,0.07291275]
[1771685459699,0.07290442,68583.0,68577.0,0.00022]
[1771685461703,0.29159826,68588.0,68577.0,0.00022]
[1771685461704,0.0002151,68593.0,68589.0,0.07289798]
[1771685461904,0.07310891,68593.0,68586.0,0.07290019]
[1771685462107,0.07310891,68593.0,68585.0,0.07290202]
[1771685462308,0.07289509,68592.0,68584.0,0.07290321]
[1771685462837,0.07301195,68592.0,68584.0,0.07290321]
[1771685465512,0.07301195,68592.0,68574.0,0.07291381]
[1771685465513,0.07290536,68583.0,68574.0,0.07291381]
[1771685465713,0.07290012,68587.0,68578.0,0.07290873]
[1771685466067,0.16374813,68590.0,68577.0,0.16380813]
[1771685466068,0.00016,68590.0,68577.0,0.16380813]
[1771685466273,0.00016,68590.0,68585.0,0.07290141]
[1771685466478,0.00016,68590.0,68584.0,0.0729023]
[1771685466708,0.00016,68590.0,68581.0,0.07290649]
[1771685466874,0.00016,68590.0,68582.0,0.0729046]
[1771685468518,0.00016,68590.0,68580.0,0.45521431]
[1771685468727,0.00031686,68592.0,68587.0,0.07289912]
[1771685468921,0.00031686,68592.0,68588.0,0.07289863]
[1771685469067,0.02489145,68598.0,68587.0,0.07275524]
[1771685469068,0.07288784,68599.0,68589.0,0.07289771]
[1771685469290,0.29154312,68601.0,68588.0,0.07289886]
[1771685469714,0.02505145,68600.0,68588.0,0.07289886]
[1771685470513,0.07289061,68596.0,68588.0,0.07289886]
[1771685471354,0.07289061,68596.0,68587.0,0.37256722]
[1771685471571,0.07289208,68595.0,68587.0,0.37256722]
[1771685471951,0.07289208,68595.0,68587.0,0.44546714]
[1771685472802,0.07289522,68592.0,68584.0,0.07290312]
[1771685472962,0.07289365,68594.0,68585.0,0.07290133]
[1771685473158,0.07289411,68593.0,68585.0,0.07290133]
[1771685476019,0.07289491,68592.0,68585.0,0.07290222]
[1771685476226,0.02448709,68596.0,68584.0,0.00011686]
[1771685476417,0.00016,68600.0,68584.0,0.00011686]
[1771685476418,0.00016,68600.0,68589.0,0.29159022]
[1771685476617,0.00016,68600.0,68593.0,0.07289277]
[1771685476818,0.29152135,68606.0,68598.0,0.07288833]
[1771685476819,0.07288027,68606.0,68598.0,0.07288833]
[1771685477020,0.07309637,68605.0,68597.0,0.07288917]
[1771685477363,0.0002151,68605.0,68598.0,0.07288808]
[1771685477755,0.07303626,68610.0,68608.0,0.07287762]
[1771685477756,0.00016,68610.0,68608.0,0.07287762]
[1771685477893,0.02448709,68615.0,68606.0,0.07287894]
[1771685477894,0.09735831,68615.0,68606.0,0.07287894]
[1771685478305,0.17512,68619.0,68602.0,0.34489043]
[1771685478511,0.07286727,68618.0,68610.0,0.07287486]
[1771685478954,0.00060454,68617.0,68611.0,0.07287416]
[1771685479127,0.00060454,68617.0,68611.0,0.07287376]
[1771685479327,0.00060454,68617.0,68609.0,0.34489043]
[1771685479527,0.00060454,68617.0,68610.0,0.07287567]
[1771685479749,0.00060454,68617.0,68611.0,0.07287405]
[1771685480089,0.00060454,68617.0,68611.0,0.06301871]
[1771685480744,0.00060454,68617.0,68612.0,0.07287335]
[1771685481625,0.00060454,68617.0,68611.0,0.07287436]
[1771685482060,0.00060454,68617.0,68611.0,0.07287442]
[1771685482260,0.00060454,68617.0,68610.0,0.07287567]
[1771685482464,0.00060454,68617.0,68611.0,0.07287408]
[1771685483264,0.00060454,68617.0,68611.0,0.07287461]
[1771685483431,0.00060454,68617.0,68612.0,0.07287344]
[1771685483639,0.00060454,68617.0,68610.0,0.07287567]
[1771685484549,0.00060454,68617.0,68611.0,0.07309455]
[1771685484954,0.00080454,68617.0,68611.0,0.07309455]
[1771685485197,0.00080454,68617.0,68611.0,0.00022]
[1771685485639,0.07287128,68615.0,68611.0,0.00022]
[1771685485811,0.00080454,68617.0,68605.0,0.07288051]
[1771685485812,0.02448709,68616.0,68605.0,0.07288051]
[1771685485988,0.02448709,68611.0,68605.0,0.07288088]
[1771685488123,0.07287776,68609.0,68600.0,0.07304615]
[1771685488320,0.02448709,68608.0,68601.0,0.0728852]
[1771685489067,0.02448709,68608.0,68600.0,0.07304582]
[1771685489271,0.07287776,68610.0,68591.0,0.29158194]
[1771685489272,0.02448709,68609.0,68598.0,0.07288842]
[1771685489475,0.16374813,68610.0,68598.0,0.07288842]
[1771685489476,0.07288064,68606.0,68598.0,0.07288842]
[1771685489725,0.02448709,68605.0,68598.0,0.07288842]
[1771685489930,0.02448709,68605.0,68599.0,0.07288699]
[1771685490136,0.02448709,68605.0,68597.0,0.00022]
[1771685490929,0.09736838,68605.0,68597.0,0.07310917]
[1771685491348,0.02448709,68605.0,68598.0,0.07288817]
[1771685491709,0.02448709,68605.0,68599.0,0.07288722]
[1771685492783,0.00016,68610.0,68598.0,0.00022]
[1771685492987,0.07287436,68612.0,68603.0,0.07288218]
[1771685493196,0.07287436,68612.0,68603.0,0.41777261]
[1771685493399,0.07287472,68611.0,68603.0,0.07288218]
[1771685495004,0.07287472,68611.0,68603.0,0.07273828]
[1771685495559,0.07287472,68611.0,68603.0,0.07259439]
[1771685495764,0.07287436,68612.0,68604.0,0.07288186]
[1771685498834,0.09573013,68612.0,68604.0,0.07288186]
[1771685499384,0.09573013,68612.0,68605.0,0.07288093]
[1771685499810,0.09573013,68612.0,68604.0,0.07310172]
[1771685500633,0.07287436,68612.0,68604.0,0.07310172]
[1771685500842,0.02285577,68611.0,68604.0,0.07310172]
[1771685501040,0.09573045,68611.0,68604.0,0.07310172]
[1771685501665,0.07367384,68617.0,68601.0,0.07288325]
[1771685501939,0.02285577,68608.0,68600.0,0.07304599]
[1771685502104,0.00080454,68617.0,68598.0,0.00022]
[1771685502105,0.07288072,68606.0,68598.0,0.07310802]
[1771685502251,0.02285577,68605.0,68598.0,0.07310802]
[1771685502696,0.09573703,68605.0,68598.0,0.00022]
[1771685502894,0.02285577,68603.0,68598.0,0.00022]
[1771685503050,0.02285577,68603.0,68594.0,0.07289077]
[1771685503275,0.02285577,68601.0,68594.0,0.07289267]
[1771685503469,0.02285577,68601.0,68593.0,0.0728917]
[1771685504760,0.02285577,68601.0,68596.0,0.07288986]
[1771685505177,0.02285577,68601.0,68597.0,0.07288928]
[1771685505523,0.07288122,68605.0,68597.0,0.07288928]
[1771685506099,0.07288003,68606.0,68597.0,0.07288928]
[1771685506288,0.00016,68610.0,68591.0,0.00022]
[1771685506502,0.00016,68610.0,68602.0,0.07288406]
[1771685506720,0.00016,68610.0,68604.0,0.07288202]
[1771685507167,0.00016,68610.0,68605.0,0.0728808]
[1771685507365,0.00016,68610.0,68604.0,0.07288202]
[1771685508071,0.00016,68610.0,68599.0,0.02345087]
[1771685508265,0.0002,68612.0,68606.0,0.07287935]
[1771685508475,0.0002,68612.0,68606.0,0.07273545]
[1771685509103,0.02305577,68612.0,68604.0,0.07288144]
[1771685509945,0.02305577,68612.0,68605.0,0.07288098]
[1771685510485,0.02305577,68612.0,68602.0,0.07288366]
[1771685510975,0.07287548,68611.0,68602.0,0.07288366]
[1771685511402,0.07313338,68611.0,68602.0,0.07288366]
[1771685511889,0.07287588,68610.0,68601.0,0.0728852]
[1771685512120,0.07287697,68609.0,68601.0,0.0728852]
[1771685512330,0.07287697,68609.0,68600.0,0.00016]
[1771685512331,0.0957325,68609.0,68600.0,0.00016]
[1771685512550,0.02285577,68609.0,68602.0,0.07288403]
[1771685512752,0.02285577,68609.0,68601.0,0.07288479]
[1771685512954,0.02285577,68609.0,68602.0,0.072884]
[1771685513407,0.02311367,68609.0,68602.0,0.072884]
[1771685515017,0.02311367,68609.0,68603.0,0.07288246]
[1771685515521,0.0002579,68609.0,68603.0,0.07288246]
[1771685515719,0.0002,68612.0,68603.0,0.07288247]
[1771685515720,0.07307441,68612.0,68603.0,0.07288247]
[1771685515931,0.07307441,68612.0,68603.0,0.39716124]
[1771685516305,0.07307441,68612.0,68604.0,0.07288125]
[1771685518070,0.07287549,68611.0,68603.0,0.07310247]
[1771685518213,0.0002,68612.0,68604.0,0.07288199]
[1771685518815,0.07307377,68612.0,68604.0,0.07288199]
[1771685520447,0.07287493,68611.0,68604.0,0.07288177]
[1771685521256,0.0002,68612.0,68603.0,0.00022]
[1771685521461,0.0002,68612.0,68607.0,0.07287816]
[1771685521710,0.0002,68612.0,68608.0,0.07287779]
[1771685521846,0.0002,68612.0,68603.0,0.07310233]
[1771685522049,0.0002,68612.0,68603.0,0.00022]
[1771685522249,0.0002,68612.0,68605.0,0.07288017]
[1771685522501,0.0002,68612.0,68606.0,0.07287897]
[1771685523198,0.0012,68612.0,68606.0,0.07287897]
[1771685523380,0.0002027,68613.0,68603.0,0.00022]
[1771685523381,0.00016,68620.0,68603.0,0.00022]
[1771685523596,0.07285844,68627.0,68619.0,0.07286611]
[1771685523760,0.00031948,68624.0,68618.0,0.07286662]
[1771685523973,0.00031948,68624.0,68613.0,0.61576595]
[1771685523974,0.00031948,68624.0,68613.0,0.32427877]
[1771685524177,0.00016,68630.0,68610.0,0.02284625]
[1771685524178,0.0002027,68636.0,68621.0,0.02345087]
[1771685524378,0.0002027,68636.0,68628.0,0.07285554]
[1771685524633,0.07305104,68636.0,68628.0,0.07285644]
[1771685524780,0.07305104,68636.0,68626.0,0.32427877]
[1771685524781,0.0002027,68636.0,68629.0,0.07285446]
[1771685524980,0.0002027,68636.0,68626.0,0.39713681]
[1771685525184,0.29135153,68646.0,68626.0,0.39713681]
[1771685525185,0.29135153,68646.0,68627.0,0.07285762]
[1771685525186,0.07284958,68635.0,68627.0,0.07285762]
[1771685525387,0.07284958,68635.0,68625.0,0.02345087]
[1771685525388,0.07296632,68635.0,68630.0,0.00016]
[1771685525586,0.00011674,68635.0,68630.0,0.00016]
[1771685526034,0.00011674,68635.0,68630.0,0.07301361]
[1771685526444,0.07284516,68639.0,68631.0,0.07285248]
[1771685527105,0.07284516,68639.0,68630.0,0.02361087]
[1771685527106,0.00016,68650.0,68638.0,0.07284515]
[1771685527318,0.00016,68650.0,68635.0,0.32427877]
[1771685527319,0.07283743,68647.0,68636.0,0.07284797]
[1771685527518,0.09729794,68650.0,68636.0,0.09629884]
[1771685527739,0.09714449,68643.0,68634.0,0.07284935]
[1771685527919,0.02430367,68642.0,68634.0,0.07284935]
[1771685528370,0.07284276,68641.0,68631.0,0.07285255]
[1771685528543,0.07284276,68641.0,68630.0,0.00016]
[1771685528544,0.0728478,68637.0,68630.0,0.00016]
[1771685532278,0.09714967,68638.0,68630.0,0.07301439]
[1771685533071,0.02430367,68638.0,68630.0,0.07301439]
[1771685533275,0.02430367,68638.0,68630.0,0.00016]
[1771685533276,0.0002,68637.0,68630.0,0.00016]
[1771685533501,0.07284929,68635.0,68630.0,0.00016]
[1771685533695,0.07284806,68636.0,68630.0,0.00016]
[1771685534366,0.02460073,68636.0,68621.0,0.19964689]
[1771685534664,0.0728521,68633.0,68624.0,0.0728605]
[1771685534994,0.0728521,68633.0,68623.0,0.07286163]
[1771685535217,0.0728521,68633.0,68621.0,0.27262697]
[1771685535218,0.07285231,68632.0,68622.0,0.07286082]
[1771685535413,0.07285231,68632.0,68623.0,0.07286186]
[1771685535802,0.07285231,68632.0,68624.0,0.07286061]
[1771685536004,0.0728521,68633.0,68624.0,0.07286061]
[1771685536307,0.0728521,68633.0,68621.0,0.19976363]
[1771685536308,0.0728521,68633.0,68623.0,0.07285974]
[1771685536733,0.0728521,68633.0,68624.0,0.0728608]
[1771685536924,0.0728521,68633.0,68625.0,0.07285972]
[1771685537745,0.09745084,68636.0,68623.0,0.29144707]
[1771685537951,0.07284946,68635.0,68627.0,0.07285701]
[1771685539221,0.07384946,68635.0,68627.0,0.07285701]
[1771685539468,0.02460073,68634.0,68625.0,0.07285974]
[1771685539679,0.07285141,68633.0,68625.0,0.07285974]
[1771685540091,0.07285141,68633.0,68626.0,0.07285855]
[1771685540611,0.07285333,68632.0,68624.0,0.07285869]
[1771685540774,0.07285333,68633.0,68623.0,0.07286109]
[1771685541002,0.0002,68637.0,68621.0,0.17538014]
[1771685541357,0.09746212,68624.0,68616.0,0.07286917]
[1771685541560,0.09746212,68624.0,68616.0,0.07284214]
[1771685541889,0.02460073,68624.0,68617.0,0.07286796]
[1771685542314,0.09746162,68624.0,68616.0,0.07284214]
[1771685542751,0.07286224,68623.0,68616.0,0.00011678]
[1771685542927,0.09746162,68624.0,68616.0,0.07298576]
[1771685544125,0.09746162,68624.0,68617.0,0.07286817]
[1771685544442,0.02460073,68624.0,68617.0,0.07286817]
[1771685546346,0.07286123,68624.0,68616.0,0.00011678]
[1771685546711,0.02284625,68630.0,68616.0,0.2915919]
[1771685546712,0.02476073,68630.0,68616.0,0.2915919]
[1771685546987,0.07285731,68628.0,68619.0,0.07286591]
[1771685548110,0.07285851,68627.0,68619.0,0.07286591]
[1771685549089,0.09570174,68630.0,68618.0,0.36305748]
[1771685549289,0.09570174,68630.0,68616.0,0.07298577]
[1771685549290,0.07286147,68624.0,68616.0,0.07298577]
[1771685550869,0.07286147,68624.0,68616.0,0.00011678]
[1771685551058,0.07286252,68623.0,68616.0,0.07298598]
[1771685551506,0.07286252,68623.0,68616.0,0.00011678]
[1771685551668,0.07286114,68624.0,68616.0,0.07298534]
[1771685552071,0.07286114,68624.0,68616.0,0.07320534]
[1771685552307,0.07306114,68624.0,68616.0,0.07320534]
[1771685554325,0.07306114,68624.0,68616.0,0.07306178]
[1771685554479,0.07306114,68624.0,68616.0,0.0729201]
[1771685556311,0.07306114,68624.0,68616.0,0.07277652]
[1771685556734,0.07306114,68624.0,68616.0,0.07263295]
[1771685557144,0.09746421,68622.0,68610.0,1.617e-05]
[1771685557356,0.02460073,68620.0,68613.0,0.07287172]
[1771685557765,0.02460073,68620.0,68611.0,0.07287461]
[1771685558081,0.02460073,68620.0,68610.0,1.617e-05]
[1771685558082,0.02447492,68618.0,68610.0,1.617e-05]
[1771685558285,0.09734228,68618.0,68610.0,1.617e-05]
[1771685558482,0.02447492,68618.0,68611.0,0.07287459]
[1771685558689,0.02447492,68618.0,68610.0,0.07288983]
[1771685558690,0.02447492,68618.0,68612.0,0.07287332]
[1771685559128,0.00016,68630.0,68619.0,0.07286533]
[1771685559339,0.07285853,68627.0,68619.0,0.07286533]
[1771685559690,0.07285887,68626.0,68618.0,0.07286686]
[1771685561039,0.0002,68624.0,68618.0,0.07286686]
[1771685562104,0.0002,68624.0,68619.0,0.07286608]
[1771685563462,0.0002,68624.0,68619.0,0.07272248]
[1771685563635,0.0002,68624.0,68618.0,0.07286694]
[1771685564047,0.0002,68624.0,68619.0,0.07286603]
[1771685564353,0.0002,68624.0,68620.0,0.07286505]
[1771685564551,0.0002,68624.0,68619.0,0.07286603]
[1771685566130,0.07285884,68626.0,68619.0,0.07286603]
[1771685566803,0.07286193,68623.0,68613.0,0.00022]
[1771685566995,0.33556314,68626.0,68613.0,0.00033665]
[1771685567203,0.33556314,68626.0,68606.0,0.17526]
[1771685567204,0.16343863,68630.0,68606.0,0.00022]
[1771685567205,0.07287851,68608.0,68606.0,0.00022]
[1771685567441,0.07288948,68597.0,68596.0,1e-08]
[1771685567633,0.02447492,68601.0,68596.0,1e-08]
[1771685567776,0.29150965,68609.0,68596.0,1e-08]
[1771685567777,0.07287735,68609.0,68596.0,1e-08]
[1771685567973,0.07287735,68609.0,68599.0,0.16327863]
[1771685568279,0.07287735,68609.0,68601.0,0.02313744]
[1771685568280,0.07287783,68608.0,68601.0,0.02313744]
[1771685568502,0.07287887,68607.0,68601.0,0.02313744]
[1771685568674,0.07288217,68604.0,68596.0,0.07289037]
[1771685568886,0.0728842,68602.0,68596.0,1e-08]
[1771685569086,0.02447492,68602.0,68596.0,1e-08]
[1771685569531,0.07288342,68603.0,68596.0,1e-08]
[1771685569832,0.07288342,68603.0,68597.0,0.00022]
[1771685572737,0.2915174,68607.0,68597.0,0.00022]
[1771685572939,0.00016,68620.0,68605.0,0.32339787]
[1771685573148,0.00054919,68620.0,68608.0,0.07287706]
[1771685573347,0.07286876,68617.0,68608.0,0.07287706]
[1771685573553,0.07286876,68617.0,68609.0,0.07287654]
[1771685573918,0.16382782,68620.0,68607.0,0.02313744]
[1771685573919,0.07287323,68613.0,68607.0,0.02313744]
[1771685574129,0.07287174,68614.0,68607.0,0.02313744]
[1771685574606,0.07287334,68613.0,68607.0,0.02313744]
[1771685575025,0.07287157,68614.0,68607.0,0.02313744]
[1771685575855,0.16382782,68620.0,68607.0,0.02313744]
[1771685576033,0.16402782,68620.0,68610.0,0.07287518]
[1771685576300,0.29147485,68617.0,68600.0,0.00016]
[1771685576504,0.07287397,68612.0,68601.0,0.0728842]
[1771685576685,0.07287574,68610.0,68602.0,0.07288417]
[1771685580586,0.00074919,68620.0,68600.0,0.32671726]
[1771685580757,0.07287012,68616.0,68607.0,0.07287883]
[1771685581301,0.07287012,68616.0,68608.0,0.07287693]
[1771685581549,0.07287012,68616.0,68608.0,0.07273343]
[1771685581755,0.07286699,68619.0,68610.0,0.07287538]
[1771685581973,0.09809013,68620.0,68611.0,0.07287416]
[1771685582139,0.02522411,68620.0,68612.0,0.07287354]
[1771685582309,0.02522411,68620.0,68610.0,0.07287523]
[1771685582743,0.02522411,68620.0,68609.0,0.07287644]
[1771685582744,0.07286827,68617.0,68609.0,0.07287644]
[1771685583179,0.0002,68610.0,68609.0,0.07287644]
[1771685583376,0.0002,68610.0,68607.0,0.34370121]
[1771685583557,0.0002,68610.0,68606.0,0.07287955]
[1771685583971,0.07286977,68616.0,68608.0,0.07287686]
[1771685585053,0.07286977,68616.0,68606.0,0.07287955]
[1771685585193,0.02447492,68615.0,68607.0,0.07287788]
[1771685585388,0.02447492,68614.0,68607.0,0.07287788]
[1771685585808,0.16402782,68620.0,68602.0,0.07288408]
[1771685585809,0.07287461,68611.0,68602.0,0.07288408]
[1771685586005,0.02447492,68611.0,68600.0,0.00016]
[1771685586209,0.02447492,68611.0,68600.0,0.16343863]
[1771685586561,0.02447492,68611.0,68604.0,0.07288103]
[1771685587022,0.07287266,68613.0,68604.0,0.07288103]
[1771685589269,0.07287423,68612.0,68603.0,0.07288309]
[1771685589472,0.32809474,68616.0,68600.0,0.00016]
[1771685589611,0.09620896,68608.0,68600.0,0.07304609]
[1771685590030,0.09620896,68608.0,68600.0,0.00016]
[1771685590787,0.09620896,68608.0,68600.0,0.07304599]
[1771685590965,0.02333058,68608.0,68600.0,0.07304609]
[1771685591323,0.02333058,68608.0,68600.0,0.00016]
[1771685591865,0.02333058,68608.0,68601.0,0.07288521]
[1771685595138,0.02333058,68608.0,68596.0,1e-08]
[1771685595349,0.02333058,68608.0,68590.0,0.29196691]
[1771685595350,0.00016,68610.0,68600.0,0.32954933]
[1771685595548,0.00016,68610.0,68602.0,0.07288339]
[1771685595947,0.00016,68610.0,68603.0,0.07288307]
[1771685596350,0.00016,68610.0,68602.0,0.07288394]
[1771685597661,0.07303571,68610.0,68602.0,0.07288394]
[1771685601185,0.07287565,68612.0,68604.0,0.07288187]
[1771685601458,0.29147568,68617.0,68607.0,0.07287837]
[1771685601459,0.07287043,68615.0,68607.0,0.07287837]
[1771685601603,0.02470501,68619.0,68606.0,0.0728792]
[1771685601805,0.07287454,68612.0,68603.0,0.29177565]
[1771685602210,0.07287454,68612.0,68604.0,0.07288126]
[1771685602520,0.07287142,68614.0,68603.0,0.29177565]
[1771685602960,0.07287142,68614.0,68605.0,0.07288092]
[1771685603158,0.07287142,68614.0,68606.0,0.07287945]
[1771685603545,0.07287266,68613.0,68605.0,0.07288092]
[1771685603745,0.07287266,68613.0,68606.0,0.29177565]
[1771685604854,0.07287675,68609.0,68603.0,0.00022]
[1771685605060,0.02470501,68612.0,68604.0,0.29177565]
[1771685605262,0.16327863,68613.0,68604.0,0.29177565]
[1771685605263,0.02470501,68608.0,68604.0,0.29177565]
[1771685605462,0.02470501,68608.0,68603.0,0.00022]
[1771685605629,0.02470501,68608.0,68604.0,0.29177565]
[1771685605828,0.16327863,68613.0,68600.0,0.00016]
[1771685606032,0.0002,68614.0,68600.0,0.00016]
[1771685606033,0.07288073,68606.0,68600.0,0.00016]
[1771685606484,0.07288115,68605.0,68600.0,0.00016]
[1771685606698,0.09758242,68609.0,68600.0,0.00016]
[1771685606849,0.07287981,68607.0,68600.0,0.00016]
[1771685607234,0.07288017,68606.0,68600.0,0.00016]
[1771685609344,0.02470501,68609.0,68600.0,0.07304615]
[1771685609671,0.07287857,68608.0,68600.0,0.07304615]
[1771685609858,0.07287857,68608.0,68600.0,0.00016]
[1771685610280,0.07287886,68607.0,68600.0,0.00016]
[1771685610479,0.07281386,68607.0,68600.0,0.00016]
[1771685610805,0.07287802,68608.0,68600.0,0.07304557]
[1771685610971,0.07287802,68608.0,68601.0,0.07288502]
[1771685611158,0.07287802,68608.0,68600.0,0.07304594]
[1771685611362,0.07287995,68606.0,68600.0,0.00038]
[1771685611758,0.07287913,68607.0,68600.0,0.00038]
[1771685611967,0.07288006,68606.0,68600.0,0.00038]
[1771685612165,0.02470501,68608.0,68596.0,0.00022]
[1771685612395,0.02470501,68603.0,68596.0,0.07310981]
[1771685612636,0.02470501,68603.0,68597.0,0.07288907]
[1771685613242,0.0728813,68605.0,68597.0,0.07288907]
[1771685613457,0.07287908,68607.0,68599.0,0.07288704]
[1771685613664,0.07287908,68607.0,68599.0,0.40243637]
[1771685614004,0.07288005,68606.0,68599.0,0.40243637]
[1771685614199,0.07288005,68606.0,68598.0,0.07288806]
[1771685615803,0.07287779,68608.0,68596.0,0.00022]
[1771685616053,0.16343863,68610.0,68596.0,0.00022]
[1771685616054,0.07288358,68603.0,68596.0,0.00022]
[1771685616411,0.09758859,68603.0,68596.0,0.00022]
[1771685616611,0.30972539,68605.0,68591.0,0.00022]
[1771685616833,0.00016,68610.0,68586.0,0.00022]
[1771685616834,0.02470501,68592.0,68586.0,0.00022]
[1771685617034,0.09760001,68592.0,68584.0,0.06349457]
[1771685618202,0.09760001,68592.0,68584.0,0.06361143]
[1771685618556,0.09760001,68592.0,68585.0,0.00022]
[1771685620314,0.07289614,68591.0,68581.0,0.07290599]
[1771685620514,0.07289614,68591.0,68578.0,0.29192663]
[1771685620515,0.07289614,68591.0,68572.0,0.07291507]
[1771685620517,0.07290682,68581.0,68572.0,0.07291507]
[1771685620751,0.07290682,68581.0,68570.0,0.07329728]
[1771685620752,0.00016,68590.0,68563.0,0.00022]
[1771685620753,0.02269212,68582.0,68563.0,0.00022]
[1771685620938,0.09578135,68574.0,68565.0,0.07292334]
[1771685621111,0.07291563,68573.0,68565.0,0.07292334]
[1771685621333,0.07291499,68573.0,68564.0,0.07292452]
[1771685621552,0.07291499,68573.0,68565.0,0.07292336]
[1771685621936,0.09578135,68574.0,68563.0,0.0731455]
[1771685622288,0.09578135,68574.0,68564.0,0.07292456]
[1771685622460,0.02286655,68572.0,68565.0,0.0729235]
[1771685622910,0.02286655,68572.0,68566.0,0.07292211]
[1771685623114,0.02286655,68572.0,68563.0,0.00022]
[1771685623862,0.02286655,68571.0,68563.0,0.00022]
[1771685624066,0.07292036,68568.0,68562.0,0.0002905]
[1771685624214,0.07292036,68568.0,68561.0,0.17508]
[1771685624215,0.02286655,68567.0,68561.0,0.17508]
[1771685624410,0.02286655,68566.0,68561.0,0.17508]
[1771685625276,0.02286655,68566.0,68557.0,0.07293151]
[1771685625277,0.02286655,68566.0,68557.0,0.07293174]
[1771685625426,0.02286655,68565.0,68558.0,0.07293067]
[1771685625632,0.02286655,68565.0,68564.0,0.00022]
[1771685626428,0.02286655,68565.0,68564.0,7.642e-05]
[1771685626643,0.02286655,68565.0,68559.0,0.07271861]
[1771685627381,0.02286655,68565.0,68558.0,0.0729308]
[1771685627606,0.02286655,68565.0,68558.0,0.07293061]
[1771685627786,0.02286655,68565.0,68559.0,0.07292962]
[1771685628196,0.02286655,68565.0,68559.0,0.07278592]
[1771685628427,0.00016,68570.0,68557.0,0.07298125]
[1771685628428,0.00016,68570.0,68560.0,0.07292842]
[1771685628574,0.00016,68570.0,68565.0,0.0729226]
[1771685628773,0.07291528,68573.0,68565.0,0.40081922]
[1771685629024,0.07291632,68572.0,68564.0,0.0729243]
[1771685629231,0.02286655,68570.0,68557.0,0.00033688]
[1771685629436,0.07292119,68568.0,68559.0,0.07292984]
[1771685629638,0.07291924,68569.0,68559.0,0.07292984]
[1771685629887,0.07292031,68568.0,68559.0,0.07292984]
[1771685630133,0.07292143,68567.0,68559.0,0.07292984]
[1771685631935,0.07292343,68566.0,68557.0,0.07326838]
[1771685632119,0.02286655,68565.0,68558.0,0.0729307]
[1771685633199,0.02286655,68565.0,68558.0,0.0731507]
[1771685635372,0.02286655,68565.0,68552.0,0.17512]
[1771685635373,0.07292756,68562.0,68553.0,0.07293521]
[1771685635581,0.02286655,68565.0,68552.0,0.50301662]
[1771685635712,0.07292544,68564.0,68552.0,0.50301662]
[1771685636114,0.07292544,68564.0,68552.0,0.17512]
[1771685636338,0.07292544,68564.0,68552.0,0.50301662]
[1771685636540,0.07292637,68563.0,68555.0,0.07293338]
[1771685636912,0.07292637,68563.0,68556.0,0.07293289]
[1771685637163,0.07292637,68563.0,68555.0,0.07293377]
[1771685637374,0.07292637,68563.0,68555.0,0.07264638]
[1771685641077,0.07292637,68563.0,68553.0,0.07315591]